{"text_format":"1","workbook":"xlsx","n_sheets":2,"sheets":["prezentačná miestnosť","Rekapitulacia"],"not_rendered":{"charts":0,"images":0,"macros":1,"external_links":0,"defined_names":1,"comments":0,"pivot_tables":0},"unopened":[],"bounds":{"document_bytes":16777216,"sheet_cells":100000,"rows_first":2000,"rows_last":500,"rows_between":2000,"halvings":0,"cell_chars":16384,"cell_head_chars":4096},"cells_cut":0,"cells_raw":0,"read":"whole","date_system":"1900"}

{"sheet":"prezentačná miestnosť","index":0,"n_rows":50,"n_cols":8,"rows_kept":50,"cut":false,"hidden":false,"merged":[]}
[]
["Vybudovanie prezentačnej miestnosti v objekte Zážitkového centra vedy Aurelium CVTI SR, Bratislava"]
[]
[]
[]
["P.Č.","KCN","Kód položky","Skrátený popis","MJ","Množstvo celkom","Cena jednotková v € bez DPH","Cena celkom"]
["1","2","3","4","5","6","7","8"]
[]
[]
[null,null,"HSV","Práce a dodávky HSV"]
[null,null,null,"Ostatné konštrukcie a práce-búranie"]
[1,null,null,"Lešenie ľahké pracovné pomocné, s výškou lešeňovej podlahy do 4,00 m","m2",40,null,{"$f":"(ROUND(F12,2))*G12","v":0}]
[2,null,null,"Vyčistenie miestností,budov pri výške podlaží do 4m","m2",214.58,null,0]
[]
[null,null,"PSV","Práce a dodávky PSV"]
[null,null,null,"Konštrukcie - drevostavby a SDK konštrukcie"]
[3,null,null,"Montáž OSB dosiek","m2",145,null,{"$f":"(ROUND(F17,2))*G17","v":0}]
[4,null,null,"Dodávka OSB 3 dosiek hr. 22 mm","m2",145,null,0]
[5,null,null,"Spojovací a kotviaci materiál","KPL",1,null,{"$f":"(ROUND(F19,2))*G19","v":0}]
[6,null,null,"Montáž dverí a plechovej zárubne do 90 cm","ks",1,null,0]
[7,null,null,"Dodávka interiérových dverí š. 90 cm, vrátane plechovej zárubne","ks",1,null,0]
[8,null,null,"Presun hmôt pre drevostavby a sadrokart.konštr. v objektoch výšky do 6 m","t",2.1,null,{"$f":"(ROUND(F22,2))*G22","v":0}]
[null,null,null,"Konštrukcie doplnkové kovové "]
[9,null,null,"Montáž rámových konštrukciií vr. zamerania","t",4.7350000000000003,null,{"$f":"(ROUND(F24,2))*G24","v":0}]
[10,null,null,"Dodávka konštrukčnej ocele S235JR","t",4.7350000000000003,null,0]
[11,null,null,"Povrchová úprava rámovej konštrukcie farebným lakom - 2x krížový náter","m2",{"$f":"92.4+42","v":134.4},null,0]
[12,null,null,"Montáž hliníkového - eloxovaného zábradlia v. 1100 mm","m",15,null,{"$f":"(ROUND(F27,2))*G27","v":0}]
[13,null,null,"Dodoávka hliníkového - eloxovaného zábradlia v. 1100 mm s vertikálnou výplňou","m",15,null,0]
[14,null,null,"Montáž hliníkového - eloxovaného zábradlia v. 400 mm","m",6.2,null,{"$f":"(ROUND(F29,2))*G29","v":0}]
[15,null,null,"Dodoávka hliníkového - eloxovaného zábradlia v. 400 mm s vertikálnou výplňou","m",6.2,null,0]
[16,null,null,"Presun hmôt pre kovové stavebné doplnkové konštrukcie v objektoch výšky do 6 m","t",4.7350000000000003,null,0]
[null,null,null,"Podlahy povlakové"]
[17,null,null,"Položenie povlakových podláh textilných všívaných a vpichovaných lepenie z pásov","m2",60,null,{"$f":"(ROUND(F33,2))*G33","v":0}]
[18,null,null,"Objektový koberec NEW ORLEANS 236 na gume s 12% stratným","m2",75,null,{"$f":"(ROUND(F34,2))*G34","v":0}]
[19,null,null,"Lepidlo na koberce a PVC podlahy Profilep 250 - 12 kg","ks",3,null,{"$f":"(ROUND(F35,2))*G35","v":0}]
[20,null,null,"Presun hmôt pre podlahy povlakové v objektoch výšky do 6 m","t",0.16800000000000001,null,{"$f":"(ROUND(F36,2))*G36","v":0}]
[]
[null,null,"M","M"]
[null,null,null,"Elektromontáže"]
[21,null,null,"Elektromontáže vrátane materiálu","KPL",1,null,{"$f":"(ROUND(F40,2))*G40","v":0}]
[null,null,null,"Montáže vzduchotechnických zariad."]
[22,null,null,"Montáž VZT a chladiacich zariadení vrátane materiálu","KPL",1,null,{"$f":"(ROUND(F42,2))*G42","v":0}]
[]
[]
[null,null,null,"Celkovo bez DPH","súbor",1,null,{"$f":"SUM(H12:H43)","v":0}]
[null,null,null,"Sadzba a výška DPH (20,00%)","%",20,null,{"$f":"H47-H45","v":0}]
[null,null,null,"Celkovo s DPH","súbor",1,null,{"$f":"H45*1.2","v":0}]
[]
[]
[null,"vyplní zhotoviteľ"]

{"sheet":"Rekapitulacia","index":1,"n_rows":8,"n_cols":5,"rows_kept":8,"cut":false,"hidden":false,"merged":[]}
[]
["Vybudovanie prezentačnej miestnosti v objekte Zážitkového centra vedy Aurelium CVTI SR, Bratislava"]
[]
[]
[]
[null,"Etapa","Cena celkovo v EUR bez DPH","DPH 20 %","Cena celkovo v EUR s DPH"]
[null,"Vybudovanie prezentačnej miestnosti v objekte Zážitkového centra vedy Aurelium CVTI SR, Bratislava",{"$f":"'prezentačná miestnosť'!H45","v":0},{"$f":"C7*0.2","v":0},{"$f":"C7+D7","v":0}]
[null,"Cena za celý predmet zákazky",{"$f":"SUM(C7:C7)","v":0},{"$f":"SUM(D7:D7)","v":0},{"$f":"SUM(E7:E7)","v":0}]